fUST/lending_fUST_20240722
["ID","MTS","AMOUNT","RATE_DAILY","PERIOD"]
[332849127,1721577631948,200.0,0.00023367,120]
[332849137,1721577751368,200.0,0.00024758,120]
[332849156,1721577897795,1500.0,0.00025,120]
[332849157,1721577932186,200.0,0.00023926,120]
[332849158,1721577990912,200.0,0.00023111,120]
[332849159,1721577994284,2000.0,0.00025,120]
[332849161,1721578042144,-227.91109562,9.999e-05,2]
[332849162,1721578042169,-154.80649189,9.999e-05,2]
[332849163,1721578042190,-154.72922386,0.0001,2]
[332849164,1721578042212,-483.12,0.00010959,2]
[332849165,1721578042234,-2889.88551159,0.00013215,2]
[332849166,1721578044139,-121.52580661,0.00013215,2]
[332849167,1721578044165,-190.029016,0.00013655,2]
[332849168,1721578044185,-151.944205,0.00013655,2]
[332849169,1721578044207,-300.0,0.00013696,2]
[332849170,1721578044227,-300.0,0.00013697,2]
[332849171,1721578044252,-500.0,0.00013698,2]
[332849172,1721578044273,-377.23985439,0.00013698,2]
[332849173,1721578044292,-500.0,0.00013698,2]
[332849174,1721578044313,-500.0,0.00013698,2]
[332849175,1721578044333,-500.0,0.00013698,2]
[332849176,1721578044354,-500.0,0.00013698,2]
[332849177,1721578044374,-500.0,0.00013698,2]
[332849178,1721578044395,-500.0,0.00013698,2]
[332849179,1721578044415,-500.0,0.00013698,2]
[332849180,1721578044435,-500.0,0.00013698,2]
[332849181,1721578044456,-500.0,0.00013698,2]
[332849182,1721578044477,-500.0,0.00013698,2]
[332849183,1721578044499,-500.0,0.00013698,2]
[332849184,1721578044522,-603.98157416,0.00013698,2]
[332849185,1721578044543,-550.23151362,0.00013698,2]
[332849186,1721578044564,-500.0,0.00013698,2]
[332849187,1721578044587,-554.94,0.00013698,2]
[332849188,1721578044607,-500.0,0.00013698,2]
[332849189,1721578044628,-385.16207719,0.00013698,2]
[332849190,1721578044648,-150.0,0.0001389,2]
[332849191,1721578044670,-1408.0,0.0001389,2]
[332849192,1721578044692,-457.64838399,0.000139,2]
[332849193,1721578044712,-500.0,0.00013972,2]
[332849194,1721578044735,-162.1269589,0.00013972,2]
[332849196,1721578054094,-337.8730411,0.00013972,2]
[332849197,1721578054116,-500.0,0.00013972,2]
[332849198,1721578054137,-151.944205,0.00013996,2]
[332849199,1721578054163,-375.93731612,0.00014,2]
[332849200,1721578054184,-166.666666,0.00014,2]
[332849201,1721578054204,-306.0,0.00014,2]
[332849202,1721578054225,-500.0,0.00014245,2]
[332849203,1721578054248,-462.26947191,0.00014245,2]
[332849204,1721578054276,-37.73052809,0.00014245,2]
[332849205,1721578054297,-500.0,0.00014245,2]
[332849206,1721578054318,-500.0,0.00014245,2]
[332849207,1721578054339,-500.0,0.00014245,2]
[332849208,1721578054360,-504.86,0.00014245,2]
[332849209,1721578054381,-500.0,0.00014245,2]
[332849210,1721578054402,-539.22,0.00014245,2]
[332849211,1721578054422,-500.0,0.00014245,2]
[332849212,1721578054443,-500.0,0.00014245,2]
[332849213,1721578054465,-500.0,0.00014245,2]
[332849214,1721578054486,-500.0,0.00014245,2]
[332849215,1721578054508,-565.6,0.00014245,2]
[332849216,1721578054530,-500.0,0.00014245,2]
[332849217,1721578054551,-500.0,0.00014245,2]
[332849218,1721578054573,-531.31,0.00014245,2]
[332849219,1721578054595,-500.0,0.00014245,2]
[332849220,1721578054617,-500.0,0.00014245,2]
[332849221,1721578054638,-500.0,0.00014245,2]
[332849222,1721578054664,-500.0,0.00014245,2]
[332849223,1721578054686,-500.0,0.00014245,2]
[332849224,1721578054708,-500.0,0.00014245,2]
[332849225,1721578054729,-500.0,0.00014245,2]
[332849226,1721578054749,-500.0,0.00014245,2]
[332849227,1721578054772,-500.0,0.00014245,2]
[332849228,1721578054794,-500.0,0.00014245,2]
[332849229,1721578054815,-579.86,0.00014245,2]
[332849230,1721578054836,-500.0,0.00014245,2]
[332849231,1721578054859,-500.0,0.00014245,2]
[332849232,1721578054880,-500.0,0.00014245,2]
[332849233,1721578054900,-500.0,0.00014245,2]
[332849234,1721578054927,-500.0,0.00014245,2]
[332849235,1721578054947,-500.0,0.00014245,2]
[332849236,1721578054968,-500.0,0.00014246,2]
[332849237,1721578054989,-473.72,0.00014246,2]
[332849238,1721578055010,-177.69,0.00014246,2]
[332849239,1721578055031,-651.22415306,0.00014247,2]
[332849245,1721578117800,2000.0,0.00025,120]
[332849284,1721578232137,-419.24097497,0.0001338,2]
[332849319,1721578232463,-357.14329543,0.0001338,2]
[332849321,1721578232473,-499.14241098,0.00013917,2]
[332849323,1721578232486,-908.85758902,0.00013917,2]
[332849325,1721578232495,-750.0,0.00014247,2]
[332849327,1721578232505,-155.0,0.0001428,2]
[332849329,1721578232516,-150.0,0.000143,2]
[332849331,1721578232526,-3291.69463573,0.00014332,2]
[332849397,1721578238155,-581.01684121,0.0001328,2]
[332849398,1721578238166,-2012.50246541,0.00014332,2]
[332849399,1721578238176,-151.944205,0.00014337,2]
[332849400,1721578238186,-150.0,0.000144,2]
[332849401,1721578238196,-367.35615468,0.00014407,2]
[332849402,1721578238206,-1012.09900574,0.00014408,2]
[332849403,1721578238217,-450.54083968,0.0001442,2]
[332849404,1721578238228,-300.0,0.00014459,2]
[332849405,1721578238238,-659.88,0.00014493,2]
[332849406,1721578238247,-627.65,0.00014493,2]
[332849407,1721578238258,-310.41998408,0.00014493,2]
[332849408,1721578238268,-500.0,0.00014493,2]
[332849409,1721578238278,-500.0,0.00014499,2]
[332849410,1721578238288,-293.8425286,0.000145,2]
[332849411,1721578238302,-293.8425286,0.000145,2]
[332849412,1721578238313,-293.8425286,0.000145,2]
[332849413,1721578238323,-293.8425286,0.000145,2]
[332849414,1721578238333,-540.6123134,0.000145,2]
[332849415,1721578238343,-150.0,0.000145,2]
[332849416,1721578238354,-150.112233,0.000145,2]
[332849417,1721578238365,-2286.44039456,0.000145,2]
[332849418,1721578238377,-1059.9589855,0.000145,2]
[332849425,1721578240356,-25457.3982091,0.000145,2]
[332849426,1721578240365,-153.0,0.000145,2]
[332849427,1721578240375,-1017.01364598,0.00014508,2]
[332849428,1721578240386,-2034.02729196,0.0001451,2]
[332849429,1721578240397,-192.69265131,0.00014517,2]
[332849430,1721578240406,-425.68650386,0.00014517,2]
[332849431,1721578240416,-500.0,0.00014517,2]
[332849432,1721578240426,-580.98746716,0.00014517,2]
[332849433,1721578240435,-612.42790529,0.00014517,2]
[332849434,1721578240444,-580.98746716,0.00014517,2]
[332849435,1721578240454,-500.0,0.00014517,2]
[332849436,1721578240465,-580.98746716,0.00014517,2]
[332849437,1721578240475,-580.98746716,0.00014517,2]
[332849438,1721578240484,-580.98746716,0.00014517,2]
[332849439,1721578240494,-580.98746716,0.00014517,2]
[332849440,1721578240504,-500.0,0.00014517,2]
[332849441,1721578240513,-580.98746716,0.00014517,2]
[332849442,1721578240523,-580.98746716,0.00014517,2]
[332849443,1721578240533,-580.98746716,0.00014517,2]
[332849444,1721578240543,-500.0,0.00014517,2]
[332849445,1721578240554,-580.98746716,0.00014517,2]
[332849446,1721578240565,-500.0,0.00014517,2]
[332849447,1721578240575,-580.98746716,0.00014517,2]
[332849448,1721578240585,-580.98746716,0.00014517,2]
[332849449,1721578240595,-580.98746716,0.00014517,2]
[332849450,1721578240605,-500.0,0.00014517,2]
[332849451,1721578240614,-580.98746716,0.00014517,2]
[332849452,1721578240624,-580.98746716,0.00014517,2]
[332849453,1721578240634,-580.98746716,0.00014517,2]
[332849454,1721578240643,-580.98746716,0.00014517,2]
[332849455,1721578240654,-580.98746716,0.00014517,2]
[332849456,1721578240664,-580.98746716,0.00014517,2]
[332849457,1721578240674,-500.0,0.00014518,2]
[332849458,1721578240683,-500.0,0.00014518,2]
[332849459,1721578240692,-500.0,0.00014518,2]
[332849460,1721578240701,-500.0,0.00014518,2]
[332849461,1721578240711,-500.0,0.00014518,2]
[332849462,1721578240720,-627.68,0.00014518,2]
[332849463,1721578240730,-649.28,0.00014518,2]
[332849464,1721578240740,-565.27,0.00014518,2]
[332849465,1721578240749,-500.0,0.00014518,2]
[332849466,1721578240759,-500.0,0.00014518,2]
[332849467,1721578240768,-500.0,0.00014518,2]
[332849468,1721578240777,-500.0,0.00014518,2]
[332849469,1721578240787,-500.0,0.00014518,2]
[332849470,1721578240796,-500.0,0.00014518,2]
[332849471,1721578240808,-500.0,0.00014518,2]
[332849472,1721578240820,-500.0,0.00014518,2]
[332849473,1721578240832,-561.68,0.00014518,2]
[332849474,1721578240843,-503.98,0.00014518,2]
[332849475,1721578240852,-500.0,0.00014518,2]
[332849476,1721578240862,-500.0,0.00014518,2]
[332849477,1721578240871,-500.0,0.00014518,2]
[332849478,1721578240880,-500.0,0.00014518,2]
[332849479,1721578240890,-500.0,0.00014518,2]
[332849480,1721578240901,-500.0,0.00014518,2]
[332849481,1721578240912,-500.0,0.00014518,2]
[332849482,1721578240922,-500.0,0.00014518,2]
[332849483,1721578240933,-500.0,0.00014518,2]
[332849484,1721578240943,-500.0,0.00014518,2]
[332849485,1721578240952,-500.0,0.00014518,2]
[332849486,1721578240962,-328.46821313,0.00014518,2]
[332849487,1721578240971,-500.0,0.00014518,2]
[332849488,1721578240980,-500.0,0.00014518,2]
[332849489,1721578240990,-500.0,0.00014518,2]
[332849490,1721578241000,-500.0,0.00014518,2]
[332849491,1721578241011,-500.0,0.00014518,2]
[332849492,1721578241021,-500.0,0.00014518,2]
[332849493,1721578241031,-500.0,0.00014518,2]
[332849494,1721578241043,-500.0,0.00014518,2]
[332849495,1721578241053,-519.25,0.00014518,2]
[332849496,1721578241062,-536.78,0.00014518,2]
[332849497,1721578241073,-500.0,0.00014518,2]
[332849498,1721578241086,-500.0,0.00014518,2]
[332849499,1721578241097,-192.26493108,0.00014518,2]
[332849500,1721578241108,-633.37,0.00014518,2]
[332849501,1721578241118,-500.0,0.00014518,2]
[332849502,1721578241129,-500.0,0.00014518,2]
[332849503,1721578241140,-500.0,0.00014518,2]
[332849504,1721578241151,-500.0,0.00014518,2]
[332849505,1721578241162,-390.73947296,0.00014518,2]
[332849506,1721578241173,-500.0,0.00014518,2]
[332849507,1721578241183,-500.0,0.00014518,2]
[332849508,1721578241193,-500.0,0.00014518,2]
[332849509,1721578241204,-500.0,0.00014518,2]
[332849510,1721578241219,-500.0,0.00014518,2]
[332849511,1721578241228,-500.0,0.00014518,2]
[332849512,1721578241239,-500.0,0.00014518,2]
[332849513,1721578241251,-500.0,0.00014518,2]
[332849514,1721578241263,-500.0,0.00014518,2]
[332849515,1721578241276,-604.38,0.00014518,2]
[332849516,1721578241288,-527.61,0.00014518,2]
[332849517,1721578241304,-500.0,0.00014518,2]
[332849518,1721578241315,-500.0,0.00014518,2]
[332849519,1721578241325,-500.0,0.00014518,2]
[332849520,1721578241334,-614.24581285,0.00014518,2]
[332849521,1721578241344,-500.0,0.00014518,2]
[332849522,1721578241353,-500.0,0.00014518,2]
[332849523,1721578241363,-500.0,0.00014518,2]
[332849524,1721578241374,-575.57,0.00014518,2]
[332849525,1721578241385,-500.70336209,0.00014518,2]
[332849526,1721578241395,-500.0,0.00014518,2]
[332849527,1721578241406,-500.0,0.00014518,2]
[332849528,1721578241416,-500.0,0.00014518,2]
[332849529,1721578241428,-554.09,0.00014518,2]
[332849530,1721578241439,-500.0,0.00014518,2]
[332849531,1721578241448,-500.0,0.00014518,2]
[332849532,1721578241460,-500.0,0.00014518,2]
[332849533,1721578241469,-500.0,0.00014519,2]
[332849534,1721578241478,-500.0,0.00014519,2]
[332849535,1721578241487,-500.0,0.00014519,2]
[332849536,1721578241497,-244.8,0.00014519,2]
[332849537,1721578241507,-500.0,0.00014519,2]
[332849538,1721578241518,-500.0,0.00014519,2]
[332849539,1721578241528,-539.22,0.00014519,2]
[332849540,1721578241537,-500.0,0.00014519,2]
[332849541,1721578241547,-500.0,0.00014519,2]
[332849542,1721578241558,-500.0,0.00014519,2]
[332849543,1721578241568,-505.89,0.00014519,2]
[332849544,1721578241579,-500.0,0.00014519,2]
[332849545,1721578241589,-500.0,0.00014519,2]
[332849546,1721578241599,-500.0,0.00014519,2]
[332849547,1721578241610,-223.1,0.00014519,2]
[332849548,1721578241620,-500.0,0.00014519,2]
[332849549,1721578241630,-500.0,0.00014519,2]
[332849550,1721578241639,-500.0,0.00014519,2]
[332849551,1721578241649,-500.0,0.00014519,2]
[332849552,1721578241659,-500.0,0.00014519,2]
[332849553,1721578241669,-500.0,0.00014519,2]
[332849554,1721578241680,-187.94,0.00014519,2]
[332849555,1721578241690,-500.0,0.00014519,2]
[332849556,1721578241702,-685.75599564,0.0001452,2]
[332849557,1721578241711,-2665.28,0.0001452,2]
[332849559,1721578241721,-1492.38,0.0001452,2]
[332849560,1721578241732,-500.0,0.0001452,2]
[332849561,1721578241743,-504.0164276,0.0001452,2]
[332849562,1721578241752,-1378.02,0.0001452,2]
[332849563,1721578241763,-500.0,0.0001452,2]
[332849564,1721578241773,-1450.96,0.0001452,2]
[332849565,1721578241783,-500.0,0.0001452,2]
[332849566,1721578241793,-500.0,0.0001452,2]
[332849567,1721578241803,-500.0,0.0001452,2]
[332849568,1721578241814,-500.0,0.0001452,2]
[332849569,1721578241827,-559.28,0.0001452,2]
[332849570,1721578241836,-776.21,0.0001452,2]
[332849571,1721578241846,-2703.39,0.0001452,2]
[332849572,1721578241856,-500.0,0.0001452,2]
[332849573,1721578241866,-508.21,0.0001452,2]
[332849574,1721578241875,-722.53,0.0001452,2]
[332849575,1721578241885,-1011.22,0.0001452,2]
[332849576,1721578241895,-500.0,0.0001452,2]
[332849577,1721578241904,-521.74,0.0001452,2]
[332849578,1721578241914,-500.0,0.0001452,2]
[332849579,1721578241924,-1538.99,0.0001452,2]
[332849580,1721578241934,-1744.99,0.0001452,2]
[332849581,1721578241944,-500.0,0.0001452,2]
[332849582,1721578241954,-10125.34,0.0001452,2]
[332849583,1721578241964,-500.0,0.0001452,2]
[332849584,1721578241973,-923.66,0.0001452,2]
[332849585,1721578241984,-500.0,0.0001452,2]
[332849586,1721578241996,-767.77,0.0001452,2]
[332849587,1721578242005,-4491.18,0.0001452,2]
[332849588,1721578242014,-500.0,0.0001452,2]
[332849589,1721578242024,-1883.32,0.0001452,2]
[332849590,1721578242034,-556.62,0.0001452,2]
[332849591,1721578242043,-500.0,0.0001452,2]
[332849592,1721578242053,-500.0,0.0001452,2]
[332849593,1721578242063,-500.0,0.0001452,2]
[332849594,1721578242074,-710.76,0.0001452,2]
[332849595,1721578242084,-3281.33,0.0001452,2]
[332849596,1721578242094,-763.56,0.0001452,2]
[332849597,1721578242103,-638.5,0.0001452,2]
[332849598,1721578242113,-3550.09344899,0.0001452,2]
[332849636,1721578243558,-500.0,0.00014518,2]
[332849637,1721578243568,-932.58655101,0.0001452,2]
[332849638,1721578243577,-644.61,0.0001452,2]
[332849639,1721578243587,-386.2510835,0.0001452,2]
[332849643,1721578246814,-277.01550922,0.00014518,2]
[332849707,1721579136860,15000.0,0.000225,30]
[332849709,1721579236177,-277.09971514,9.999e-05,2]
[332849710,1721579236202,-492.98180621,9.999e-05,2]
[332849711,1721579236225,-176.38974486,0.0001,2]
[332849712,1721579236246,-500.0,0.00013698,2]
[332849713,1721579236268,-175.163621,0.00013699,2]
[332849714,1721579236289,-150.0,0.00013945,2]
[332849715,1721579236311,-1408.0,0.00013945,2]
[332849716,1721579236333,-500.0,0.00013972,2]
[332849717,1721579236356,-166.666666,0.00014,2]
[332849718,1721579236378,-620.00000001,0.00014082,2]
[332849719,1721579236400,-4.58926065,0.00014246,2]
[332849720,1721579240099,-300.0,0.00014246,2]
[332849722,1721579243110,-195.41073935,0.00014246,2]
[332849723,1721579243133,-187.5,0.00014247,2]
[332849724,1721579243153,-367.35615468,0.00014321,2]
[332849725,1721579243175,-300.0,0.00014323,2]
[332849726,1721579243196,-500.0,0.00014324,2]
[332849727,1721579243216,-500.0,0.00014324,2]
[332849728,1721579243237,-500.0,0.00014324,2]
[332849729,1721579243257,-500.0,0.00014324,2]
[332849730,1721579243277,-500.0,0.00014324,2]
[332849731,1721579243297,-306.0,0.000144,2]
[332849732,1721579243318,-293.3132501,0.000144,2]
[332849733,1721579243339,-156.4544038,0.000144,2]
[332849734,1721579243359,-154.9174522,0.000144,2]
[332849735,1721579243378,-306.6906518,0.000144,2]
[332849736,1721579243399,-157.8737244,0.000144,2]
[332849737,1721579243421,-153.0,0.000144,2]
[332849738,1721579243443,-167.0,0.0001442,2]
[332849739,1721579243463,-5304.19710114,0.00014466,2]
[332849740,1721579243482,-500.0,0.00014499,2]
[332849741,1721579243502,-500.0,0.00014499,2]
[332849742,1721579243525,-500.0,0.00014499,2]
[332849743,1721579243545,-500.0,0.00014499,2]
[332849744,1721579243566,-500.0,0.00014499,2]
[332849745,1721579243586,-500.0,0.00014499,2]
[332849746,1721579243611,-500.0,0.00014499,2]
[332849747,1721579243631,-500.0,0.00014499,2]
[332849748,1721579243652,-500.0,0.00014499,2]
[332849749,1721579243677,-559.28,0.00014499,2]
[332849750,1721579243699,-500.0,0.00014499,2]
[332849751,1721579243719,-505.89,0.00014499,2]
[332849752,1721579243741,-500.0,0.00014499,2]
[332849753,1721579243761,-500.0,0.00014499,2]
[332849754,1721579243783,-500.0,0.00014499,2]
[332849755,1721579243805,-500.0,0.00014499,2]
[332849756,1721579243829,-500.0,0.00014499,2]
[332849757,1721579243849,-500.0,0.00014499,2]
[332849758,1721579243870,-500.0,0.00014499,2]
[332849759,1721579243893,-244.8,0.00014499,2]
[332849760,1721579243915,-521.74,0.00014499,2]
[332849761,1721579243937,-500.0,0.00014499,2]
[332849762,1721579243957,-500.0,0.00014499,2]
[332849763,1721579243978,-500.0,0.00014499,2]
[332849764,1721579244001,-153.0,0.000145,2]
[332849765,1721579244023,-293.8425286,0.000145,2]
[332849766,1721579244043,-153.0,0.000145,2]
[332849767,1721579244065,-293.8425286,0.000145,2]
[332849768,1721579244087,-153.0,0.000145,2]
[332849769,1721579244107,-293.8425286,0.000145,2]
[332849770,1721579244130,-206.5817573,0.000145,2]
[332849771,1721579244152,-306.0,0.000145,2]
[332849772,1721579244175,-150.112233,0.000145,4]
[332849773,1721579244196,-2000.0,0.00014502,2]
[332849774,1721579244220,-8110.67470229,0.00014509,2]
[332849775,1721579244240,-192.26493108,0.00014509,2]
[332849776,1721579244260,-500.0,0.00014509,2]
[332849777,1721579244282,-500.0,0.00014509,2]
[332849778,1721579244303,-500.0,0.00014509,2]
[332849779,1721579244324,-500.0,0.00014509,2]
[332849780,1721579244346,-500.0,0.00014509,2]
[332849781,1721579244367,-500.0,0.00014509,2]
[332849782,1721579244388,-536.78,0.00014509,2]
[332849783,1721579244409,-8110.67470229,0.0001451,2]
[332849784,1721579244429,-2000.0,0.00014511,2]
[332849785,1721579244449,-633.37,0.00014517,2]
[332849786,1721579244470,-500.0,0.00014517,2]
[332849787,1721579244490,-500.0,0.00014517,2]
[332849788,1721579244511,-500.0,0.00014517,2]
[332849789,1721579244535,-500.0,0.00014517,2]
[332849790,1721579244555,-500.0,0.00014517,2]
[332849791,1721579244576,-500.0,0.00014517,2]
[332849792,1721579244600,-500.0,0.00014517,2]
[332849793,1721579244622,-500.0,0.00014517,2]
[332849794,1721579244643,-500.0,0.00014517,2]
[332849795,1721579244664,-500.0,0.00014517,2]
[332849796,1721579244685,-500.0,0.00014517,2]
[332849797,1721579244706,-500.0,0.00014517,2]
[332849798,1721579244727,-500.0,0.00014517,2]
[332849799,1721579244748,-604.38,0.00014517,2]
[332849800,1721579244769,-527.61,0.00014517,2]
[332849801,1721579244791,-500.0,0.00014517,2]
[332849802,1721579244812,-500.0,0.00014517,2]
[332849803,1721579244832,-500.0,0.00014517,2]
[332849804,1721579244854,-500.0,0.00014517,2]
[332849805,1721579244877,-500.0,0.00014517,2]
[332849806,1721579244898,-500.0,0.00014517,2]
[332849807,1721579244920,-297.9805527,0.00014517,2]
[332849808,1721579244940,-500.0,0.00014517,2]
[332849809,1721579244962,-500.0,0.00014517,2]
[332849810,1721579244983,-500.0,0.00014517,2]
[332849811,1721579245006,-500.0,0.00014517,2]
[332849812,1721579245029,-500.0,0.00014517,2]
[332849813,1721579245051,-500.0,0.00014517,2]
[332849814,1721579245072,-500.0,0.00014517,2]
[332849815,1721579245094,-500.0,0.00014517,2]
[332849816,1721579245116,-500.0,0.00014517,2]
[332849817,1721579245137,-528.6995337,0.00014517,2]
[332849818,1721579245158,-500.0,0.00014517,2]
[332849819,1721579245179,-500.0,0.00014517,2]
[332849820,1721579245200,-500.0,0.00014517,2]
[332849821,1721579245221,-500.0,0.00014517,2]
[332849822,1721579245242,-500.0,0.00014517,2]
[332849823,1721579245263,-500.0,0.00014517,2]
[332849824,1721579245284,-500.0,0.00014517,2]
[332849825,1721579245305,-500.0,0.00014517,2]
[332849826,1721579245326,-617.99545208,0.00014517,2]
[332849827,1721579245349,-500.0,0.00014517,2]
[332849828,1721579245371,-500.0,0.00014517,2]
[332849829,1721579245391,-500.0,0.00014517,2]
[332849830,1721579245414,-500.0,0.00014517,2]
[332849831,1721579245436,-500.0,0.00014517,2]
[332849832,1721579245459,-500.0,0.00014517,2]
[332849833,1721579245483,-500.0,0.00014517,2]
[332849834,1721579245504,-500.0,0.00014517,2]
[332849835,1721579245529,-500.0,0.00014517,2]
[332849836,1721579245550,-500.0,0.00014517,2]
[332849837,1721579245572,-450.0,0.00014517,2]
[332849838,1721579245596,-300.0,0.00014517,2]
[332849839,1721579245619,-275.82449078,0.00014518,2]
[332849840,1721579245640,-500.0,0.00014518,2]
[332849841,1721579245660,-500.0,0.00014518,2]
[332849842,1721579245681,-500.0,0.00014518,2]
[332849843,1721579245702,-506.13,0.00014518,2]
[332849844,1721579245722,-500.0,0.00014518,2]
[332849845,1721579245743,-500.0,0.00014518,2]
[332849846,1721579245763,-628.44,0.00014518,2]
[332849847,1721579245783,-500.0,0.00014518,2]
[332849848,1721579245804,-500.0,0.00014518,2]
[332849849,1721579245826,-500.0,0.00014518,2]
[332849850,1721579245848,-500.0,0.00014518,2]
[332849851,1721579245868,-500.0,0.00014518,2]
[332849852,1721579245889,-500.0,0.00014518,2]
[332849853,1721579245910,-500.0,0.00014518,2]
[332849854,1721579245932,-500.0,0.00014518,2]
[332849855,1721579245953,-500.0,0.00014518,2]
[332849856,1721579245974,-642.19,0.00014518,2]
[332849857,1721579245994,-500.0,0.00014518,2]
[332849858,1721579246015,-586.64705397,0.00014518,2]
[332849859,1721579246035,-500.0,0.00014518,2]
[332849860,1721579246056,-500.0,0.00014518,2]
[332849861,1721579246075,-500.0,0.00014518,2]
[332849862,1721579246099,-500.0,0.00014518,2]
[332849863,1721579246120,-500.0,0.00014518,2]
[332849864,1721579246144,-223.1,0.00014518,2]
[332849865,1721579246164,-500.0,0.00014518,2]
[332849866,1721579246185,-500.0,0.00014518,2]
[332849867,1721579246205,-500.0,0.00014518,2]
[332849868,1721579246227,-288.73989506,0.00014518,2]
[332849869,1721579246248,-500.0,0.00014518,2]
[332849870,1721579246270,-315.53422149,0.00014518,2]
[332849871,1721579246295,-500.0,0.00014518,2]
[332849872,1721579246317,-500.0,0.00014518,2]
[332849873,1721579246339,-500.0,0.00014518,2]
[332849874,1721579246363,-500.0,0.00014518,2]
[332849875,1721579246386,-630.92,0.00014518,2]
[332849876,1721579246407,-500.0,0.00014518,2]
[332849877,1721579246429,-500.0,0.00014518,2]
[332849878,1721579246451,-500.0,0.00014518,2]
[332849879,1721579246473,-500.0,0.00014518,2]
[332849880,1721579246495,-500.0,0.00014518,2]
[332849881,1721579246516,-500.0,0.00014518,2]
[332849882,1721579246542,-500.0,0.00014518,2]
[332849883,1721579246566,-638.5,0.00014518,2]
[332849884,1721579246587,-500.0,0.00014518,2]
[332849885,1721579246610,-500.0,0.00014518,2]
[332849886,1721579246630,-543.68985196,0.00014518,2]
[332849887,1721579246652,-500.0,0.00014518,2]
[332849888,1721579246673,-500.0,0.00014518,2]
[332849889,1721579246696,-500.0,0.00014518,2]
[332849890,1721579246717,-556.62,0.00014518,2]
[332849891,1721579246739,-500.0,0.00014518,2]
[332849892,1721579246946,-500.0,0.00014518,2]
[332849893,1721579246969,-500.0,0.00014518,2]
[332849894,1721579246990,-500.0,0.00014518,2]
[332849895,1721579247010,-154.77557542,0.00014518,2]
[332849896,1721579247031,-533.07630241,0.00014518,2]
[332849897,1721579247052,-500.0,0.00014518,2]
[332849898,1721579247073,-500.0,0.00014518,2]
[332849899,1721579247096,-500.0,0.00014518,2]
[332849900,1721579247117,-500.0,0.00014518,2]
[332849901,1721579247138,-504.0164276,0.00014518,2]
[332849902,1721579247160,-500.0,0.00014518,2]
[332849903,1721579247182,-317.14909726,0.00014518,2]
[332849904,1721579248093,-222.69090274,0.00014518,2]
[332849905,1721579248114,-508.21,0.00014518,2]
[332849906,1721579248136,-500.0,0.00014518,2]
[332849907,1721579248157,-172.13496854,0.00014518,2]
[332849908,1721579248179,-187.94,0.00014518,2]
[332849909,1721579248199,-614.24581285,0.00014518,2]
[332849910,1721579248222,-500.0,0.00014518,2]
[332849911,1721579248243,-210.19334527,0.00014518,2]
[332849912,1721579248262,-575.57,0.00014518,2]
[332849913,1721579248282,-549.02,0.00014518,2]
[332849914,1721579248302,-500.70336209,0.00014518,2]
[332849915,1721579248322,-500.0,0.00014518,2]